Cogmind - Beta 9.4 @@@ ROGUE MODE // 2020.03.16 @ 04:39:59 Player: dkudriavtsev Result: Destroyed by G-34 Mercenary with Small Laser Performance ------------- Evolutions (0) 0 Regions Visited (2) 400 Robots Destroyed (4) 20 Value Destroyed (98) 98 Prototype IDs (0) 0 Alien Tech Used (0) 0 Bonus (0) 0 TOTAL SCORE: 518 Bonus ------- None Cogmind --------- Core Integrity 0/250 Matter 280/300 Energy 100/100 System Corruption 0% Temperature Cool (6) Movement Treading (160) Location -10/Mines Parts ------- > --- POWER (1) -------- (None) > --- PROPULSION (2) --- Light Treads Light Treads > --- UTILITY (2) ------ Large Storage Unit Core Shielding > --- WEAPON (2) ------- (None) > --- INVENTORY (10) --- Light Ion Engine Compact Wheel Compact Wheel Small Storage Unit Peak State ------------ > --- POWER ------------ Ion Engine > --- PROPULSION ------- Aluminum Leg Aluminum Leg > --- UTILITY ---------- Small Storage Unit Large Storage Unit > --- WEAPON ----------- EM Pulse Gun Small Laser > --- INVENTORY -------- Light Ion Engine Light Treads Light Treads Compact Wheel Compact Wheel Small Laser [Rating: 7] Favorites ----------- Power Ion Engine Engine Ion Engine Propulsion Aluminum Leg Treads Light Treads Leg Aluminum Leg Utility Large Storage Unit Storage Large Storage Unit Protection Core Shielding Weapon EM Pulse Gun Energy Gun EM Pulse Gun Build | -11 -10 -10 ------- Run | Scr Mat Min Slots Evolved . | . . . Power . | . . . Propulsion . | . . . Utility . | . . . Weapon . | . . . Parts Attached 12 | 6 5 1 Power 1 | 1 . . Engine 1 | 1 . . Core . | . . . Reactor . | . . . Propulsion 4 | 2 2 . Treads 2 | . 2 . Leg 2 | 2 . . Wheel . | . . . Hover . | . . . Flight . | . . . Utility 4 | 1 2 1 Device . | . . . Storage 2 | 1 1 . Processor . | . . . Hackware . | . . . Protection 2 | . 1 1 Artifact . | . . . Weapon 3 | 2 1 . Energy Gun 3 | 2 1 . Energy Cannon . | . . . Ballistic Gun . | . . . Ballistic Cannon . | . . . Launcher . | . . . Special Weapon . | . . . Impact Weapon . | . . . Slashing Weapon . | . . . Piercing Weapon . | . . . Special Melee Weapon . | . . . Unidentified Prototypes . | . . . Parts Lost 7 | . 7 . Power 1 | . 1 . Propulsion 2 | . 2 . Utility 1 | . 1 . Weapon 3 | . 3 . Highest Loss Streak 7 | . 7 . Average Slot Usage (%) 72 | . 87 56 Engine 6 | . 12 . Treads 14 | . 2 28 Leg 13 | . 24 . Storage 14 | . 15 14 Protection 9 | . 5 13 Energy Gun 13 | . 24 . Naked Turns . | . . . Heaviest Build 28 | 12 28 17 Greatest Support 40 | 20 40 40 Greatest Overweight (x) 1 | 1 1 . Average Overweight (x) . | . . . Largest Inventory Capacity 12 | 6 12 10 Average Capacity 8 | 5 8 10 Most Carried 7 | 6 7 4 Average Carried 4 | 3 6 4 Final Capacity 10 | 6 10 10 Final Carried 6 | 6 4 4 Class Distribution -------------------- 100% | Mutant Dominant Class ---------------- Mutant | -10/Materials Mutant | -10/Mines Resources | -11 -10 -10 ----------- Run | Scr Mat Min Matter Collected 265 | 193 52 20 Remotely . | . . . Salvage Created 104 | . 104 . Parts 11 | . 11 . Haulers Intercepted . | . . . Recyclers Shooed . | . . . Parts Field Recycled . | . . . Retrieved Matter . | . . . Parts Self-Destructed . | . . . Prevented . | . . . Kills | -11 -10 -10 ------- Run | Scr Mat Min Combat Hostiles Destroyed 4 | . 4 . Guns 4 | . 4 . Classes Destroyed 2 | . 2 . Swarmer 2 | . 2 . Grunt 2 | . 2 . Best Kill Streak 3 | . 3 . Combat Bots Only 3 | . 3 . Max Kills in Single Turn 1 | . 1 . Gunslinging . | . . . Exploded . | . . . Melee . | . . . Uniques/NPCs Destroyed . | . . . Combat | -11 -10 -10 -------- Run | Scr Mat Min Damage Taken 1045 | . 867 178 Core 257 | . 211 46 Absorbed by Shields . | . . . Core Remaining (%) 100 | 100 . . Volleys Fired 22 | . 22 . Largest 2 | . 2 . Hottest 80 | . 80 . Shots Fired 34 | . 34 . Gun 34 | . 34 . Cannon . | . . . Launcher . | . . . Special . | . . . Kinetic . | . . . Thermal 20 | . 20 . Explosive . | . . . Electromagnetic 14 | . 14 . Robot Hit Streak 6 | . 6 . Robot Miss Streak 2 | . 2 . Penetration Max . | . . . Secondary Targets . | . . . Shots Hit Robots 21 | . 21 . Core Hits 6 | . 6 . Critical Hits . | . . . Critical Kills . | . . . Critical Parts Destroyed . | . . . Melee Attacks . | . . . Impact . | . . . Slashing . | . . . Piercing . | . . . Sneak Attacks . | . . . Combat Hostiles . | . . . Follow-up Attacks . | . . . Damage Inflicted 254 | . 254 . Guns 254 | . 254 . Cannons . | . . . Explosions . | . . . Melee . | . . . Ramming . | . . . Kinetic . | . . . Thermal 138 | . 138 . Explosive . | . . . Electromagnetic 116 | . 116 . Impact . | . . . Slashing . | . . . Piercing . | . . . Highest Corruption . | . . . Average Corruption . | . . . Corruption Purged . | . . . Overload Shots . | . . . Overflow Damage . | . . . Projectiles . | . . . Explosions . | . . . Melee . | . . . Knockbacks . | . . . Impact . | . . . Kinetic . | . . . Secondary . | . . . Self-Inflicted Damage . | . . . Shots . | . . . Rammed . | . . . Targets Rammed . | . . . Kicked . | . . . Crushed . | . . . Highest Temperature 388 | . 388 . Average Temperature 177 | . 177 . Received Heat Transfer 453 | . 351 102 Effects 3 | . 3 . Shutdowns 1 | . 1 . Energy Bleed 1 | . 1 . Interference 1 | . 1 . Siege Activations . | . . . Robots Corrupted . | . . . Combat Hostiles . | . . . Parts Fried . | . . . Impact Corruptions . | . . . Robots Melted . | . . . Combat Hostiles . | . . . Parts Melted . | . . . Heat Transferred 325 | . 325 . Parts Sabotaged . | . . . Parts Stolen . | . . . Parts Stripped . | . . . Power Chain Reactions . | . . . Missiles Intercepted . | . . . Alert | -11 -10 -10 ------- Run | Scr Mat Min Peak Influence 107 | . 107 25 Average Influence 23 | . 34 25 Maximum Alert Level . | . . . Low Security (%) 100 | 100 100 100 Level 1 . | . . . Level 2 . | . . . Level 3 . | . . . Level 4 . | . . . Level 5 . | . . . High Security . | . . . Max Security . | . . . Squads Dispatched 1 | . 1 . Investigation . | . . . Extermination . | . . . Reinforcement 1 | . 1 . Assault . | . . . Garrison . | . . . Intercept . | . . . Construction Impeded . | . . . Haulers Reinforced . | . . . Stealth | -11 -10 -10 --------- Run | Scr Mat Min Distress Signals 1 | . 1 . Communications Jammed . | . . . Distress Signals . | . . . Times Spotted 13 | . 11 2 Peak Tracking Total 9 | . 9 2 Tactical Retreats . | . . . Traps | -11 -10 -10 ------- Run | Scr Mat Min Traps Triggered . | . . . Indirectly . | . . . Trap Hack Attempts . | . . . Triggered . | . . . Disarmed . | . . . Reprogrammed . | . . . Reused . | . . . Traps Extracted . | . . . Installed . | . . . Triggered . | . . . Machines | -11 -10 -10 ---------- Run | Scr Mat Min Machines Disabled 1 | . 1 . Max in Single Turn 1 | . 1 . Machines Sabotaged . | . . . Garrisons Compromised . | . . . Overloaded Fab Kills . | . . . Fab Network Shutdowns . | . . . Hacking | -11 -10 -10 --------- Run | Scr Mat Min Machines Accessed 2 | . 2 . Terminals 2 | . 2 . Fabricators . | . . . Repair Stations . | . . . Recycling Units . | . . . Scanalyzers . | . . . Garrison Access . | . . . Total Hacks 5 | . 5 . Successful 4 | . 4 . Failed 1 | . 1 . Catastrophic . | . . . Database Lockouts . | . . . Manual 5 | . 5 . Terminals 5 | . 5 . Fabricators . | . . . Repair Stations . | . . . Recycling Units . | . . . Scanalyzers . | . . . Garrison Access . | . . . Terminal Hacks . | . . . Fabricator Hacks . | . . . Repair Station Hacks . | . . . Recycling Unit Hacks . | . . . Scanalyzer . | . . . Garrison Access Hacks . | . . . Unauthorized Hacks 9 | . 9 . Terminals 4 | . 4 . Track 2 | . 2 . Assimilate 1 | . 1 . Botnet 1 | . 1 . Fabricators . | . . . Repair Stations . | . . . Recycling Units . | . . . Scanalyzers . | . . . Garrison Access . | . . . Data Cores Recovered . | . . . Used . | . . . Hacking Detections 1 | . 1 . Full Trace Events . | . . . Feedback Events . | . . . Feedback Blocked . | . . . Robot Schematics Acquired . | . . . Robots Built . | . . . Matter . | . . . Time . | . . . Total Robot Build Rating . | . . . Part Schematics Acquired . | . . . Parts Built . | . . . Matter . | . . . Time . | . . . Total Part Build Rating . | . . . Parts Repaired . | . . . Time . | . . . Parts Recycled . | . . . Recycled Matter . | . . . Retrieved Matter . | . . . Retrieved Components . | . . . Parts Scanalyzed . | . . . Part Schematics Acquired . | . . . Parts Damaged . | . . . Bothacking | -11 -10 -10 ------------ Run | Scr Mat Min Used RIF Installer . | . . . Robots Hacked . | . . . Non-combat . | . . . Combat . | . . . Robot Hacks Applied . | . . . Relay Couplers Released . | . . . Robots Rewired . | . . . Allies Hacked . | . . . Hacks Repelled . | . . . Allies | -11 -10 -10 -------- Run | Scr Mat Min Total Allies . | . . . Largest Group . | . . . Highest-Rated Group . | . . . Highest-Rated Ally . | . . . Total Orders . | . . . Ally Attacks . | . . . Total Damage . | . . . Kills . | . . . Allies Corrupted . | . . . Allies Melted . | . . . Intel | -11 -10 -10 ------- Run | Scr Mat Min Robot Analysis Total . | . . . Derelict Logs Recovered 1 | . . 1 Drone Launches . | . . . Drone Recoveries . | . . . Exploration | -11 -10 -10 ------------- Run | Scr Mat Min Turns Passed 549 | 116 228 205 Spaces Moved 337 | 86 125 126 Core 6 | 6 . . Treads 137 | . 11 126 Legs 194 | 80 114 . Wheels . | . . . Hover . | . . . Flight . | . . . Fastest Speed 50 | 50 120 160 Average Speed 139 | 116 133 160 Slowest Speed 160 | 120 160 160 Overloaded Moves . | . . . Propulsion Burnouts . | . . . Robots Hopped . | . . . Cave-ins Triggered . | . . . Exploration Rate (%) 18 | 6 26 22 Regions Visited 2 Branch Regions 1 Pre-discovered Areas . | . . . Known Exits Taken . | . . . Unknown Exits Taken 2 | 1 1 . Scrap Searched 1 | . . 1 Spaces Dug . | . . . Terrain Destroyed . | . . . Melee . | . . . Projectile . | . . . AOE . | . . . Actions | -11 -10 -10 --------- Run | Scr Mat Min Total 379 | 98 152 129 Wait 3 | 1 . 2 Move 335 | 85 124 126 Hop . | . . . Pick Up 7 | 6 1 . Fast Attach 8 | 6 1 1 Attach 3 | . 3 . Detach . | . . . Swap 1 | . 1 . Drop . | . . . Fire 22 | . 22 . Melee . | . . . Ram . | . . . Kick . | . . . Crush . | . . . Escape Stasis . | . . . Rewire . | . . . Trap . | . . . Miscellaneous . | . . . Route ------- -11/Scrapyard -10/Materials -10/Mines History --------- Turn | Location | Event 11 | -11/Scrapyard | Discovered new exit (range 15) 117 | -11/Scrapyard | Entered Materials 255 | -10/Materials | Discovered new exit (range 16) 322 | -10/Materials | Core integrity fell below 50% 345 | -10/Materials | Core integrity fell below 20% 345 | -10/Materials | Entered Mines 349 | -10/Mines | Build established: Mutant 360 | -10/Mines | Lost 7 parts (1p2n1u3w) 376 | -10/Mines | Learned Materials machine intel 550 | -10/Mines | Destroyed by G-34 Mercenary with Small Laser Last Messages --------------- 00315_ R-06 Scavenger collects Ion Engine. 00319_ Power failure, Ion Engine shutdown. 00319_ R-06 Scavenger collects Heat Sink. 00323_ Aluminum Leg destroyed. 00323_ R-06 Scavenger collects Sml. Laser. 00327_ Sml. Laser destroyed. 00327_ Lgt. Armor Plating destroyed. 00329_ Ion Engine destroyed. 00335_ Overheating: Energy bleed (-15). LOCATION=UNKNOWN GOAL=ESCAPE 00345_ Searching scrap... 00345_ Found 20 Matter. 00345_ Found Core Shielding. 00345_ Found Seismic Analyzer. 00346_ Acquired 20 matter. 00352_ Acquired Core Shielding. 00376_ Acquired derelict log, extracted data. Data stored: Materials machine intel. 00474_ K-01 Serf collects debris. Map ----- +----------------------------------------------------+ | ?## ## #############??????????????????????? | | ## #??????????????????????? | | # #??????????????????????? | | ######## #??????????????????????? | | ##??????# ##?????????????????????? | | # ### #####???????# #?????????????????????? | | ## ##?## #???????????# #?????????????????????? | | ?## #???# #???????????### #?????????????????????? | | ??# #???# ####??????????# #?????????????????????? | | ??# #???# #??????????# #?????????????????????? | | ### ######## #??????????# #?????????????????????? | | #???# #??????????# #?????????????????????? | | ## #???# #??????????# #?????????????????????? | | ####### #???# #??????????# #####?????????????????? | | ????## ##??# #??????????# ##????????????????? | | ????# ##?# #??####????# #????????????????? | | ????# ### #?## ###??##### #????????????????? | | ????## ! ## #?# ##?# ### #????????????????? | | ?????## ## ### #?# ## #????????????????? | | ?????## ## ## #?# # #????????????????? | | ?????# #?# ##???????????????? | | ????# #### ##??????????????? | | ???# ###### ###### #??????????????? | | ???# ##????# ##???# gg## ""????????? | | ???######?????# ##???## #### ??????? | | ??????????????####????# @##???####### #??????? | | ??????????????????????# ##??????????? ##??????? | | ??????????????????????# #?????????????#???????? | | ??????????????????????# #?????????????????????? | | ??????????????????????## ##?????????????????????? | | ???????????????????????###???????????????????????? | | ?????????????????????????????????????????????????? | | | | | | | | | | | | | | | | | | | | | | | | | | | | | | | | | | | | | +----------------------------------------------------+ Best States ------------- Heat Dissipation 25 Energy Generation 10 Energy Capacity 250 Matter Stores 290 Matter Capacity 300 Sight Range 16 Terrain Scan Density 10 Armor Coverage 150 Core Shielding 20 Evasion (%) 40 Recoil Reduction 2 Item Schematics ----------------- None Robot Schematics ------------------ None Fabricated ------------ Nothing Alien Tech Used ----------------- None Achievements -------------- None Challenges ------------ None Game ------ Seed GhostExplosiveKit Manual? 0 Play Time 00:07:14 Cumulative 5.0 hours Start 2020.03.16 @ 04:33:20 End 2020.03.16 @ 04:39:59 Sessions 1 Manual Loads 0 Difficulty Rogue Special Mode None Game No. 10 Rogue 10 Adventurer 0 Explorer 0 Win Type - Total 0 Types 0/0/0/0/0/0/0 Lore% 12 Gallery% 10 Achievement% 13 Wizard Run 0 Options --------- ASCII 0 Keyboard 0 Movement Numpad Keybinds 0 Fullscreen 1 Font 24/Proggy Map View 76x50 Tactical HUD 1 Map Filters NONE Filters NONE Steam 1 RUN: 67cd7a79-e99c-47c4-ad50-ad0bb33af92d